[Event "Late-Titled-Tuesday-Blitz-April-16-2024"]
[Site "Chess.com"]
[Date "2024.04.16"]
[Round "5"]
[White "Mikhal867"]
[Black "grzechu96"]
[Result "0-1"]
[WhiteElo "2549"]
[BlackElo "2771"]
[TimeControl "180+1"]
[EndTime "14:53:01 PDT"]
[Termination "grzechu96 won on time"]

1. c4 {[%clk 0:02:59.4]} 1... c6 {[%clk 0:02:57]} 2. g3 {[%clk 0:02:58.6]} 2...
d5 {[%clk 0:02:57.3]} 3. Bg2 {[%clk 0:02:58.2]} 3... Nf6 {[%clk 0:02:57.5]} 4.
Nf3 {[%clk 0:02:56.9]} 4... Bg4 {[%clk 0:02:51.5]} 5. Ne5 {[%clk 0:02:54.8]}
5... Bf5 {[%clk 0:02:47]} 6. O-O {[%clk 0:02:50.8]} 6... Nbd7 {[%clk 0:02:43.3]}
7. d4 {[%clk 0:02:44]} 7... e6 {[%clk 0:02:42.6]} 8. Nxd7 {[%clk 0:02:39.4]}
8... Qxd7 {[%clk 0:02:42.1]} 9. Nc3 {[%clk 0:02:37.9]} 9... Be7 {[%clk
0:02:40.3]} 10. Re1 {[%clk 0:02:24]} 10... O-O {[%clk 0:02:37.7]} 11. h3 {[%clk
0:02:10]} 11... Rad8 {[%clk 0:02:35]} 12. c5 {[%clk 0:02:06.8]} 12... h6 {[%clk
0:02:33.5]} 13. b4 {[%clk 0:02:04.4]} 13... Rfe8 {[%clk 0:02:32.3]} 14. f4
{[%clk 0:01:52.6]} 14... Ne4 {[%clk 0:02:25.4]} 15. Nxe4 {[%clk 0:01:49.3]}
15... Bxe4 {[%clk 0:02:25]} 16. Bb2 {[%clk 0:01:39.8]} 16... Bf6 {[%clk
0:02:09.5]} 17. Qd2 {[%clk 0:01:34.8]} 17... g6 {[%clk 0:01:53.9]} 18. Qe3
{[%clk 0:01:28.5]} 18... Bxg2 {[%clk 0:01:51.9]} 19. Kxg2 {[%clk 0:01:28.4]}
19... Bg7 {[%clk 0:01:52.5]} 20. Qd3 {[%clk 0:01:24.6]} 20... Kh7 {[%clk
0:01:52.2]} 21. a4 {[%clk 0:01:21.5]} 21... f6 {[%clk 0:01:50.1]} 22. b5 {[%clk
0:00:35.1]} 22... e5 {[%clk 0:01:50.1]} 23. e3 {[%clk 0:00:32.6]} 23... exf4
{[%clk 0:01:43.1]} 24. exf4 {[%clk 0:00:31.8]} 24... f5 {[%clk 0:01:43.7]} 25.
Re5 {[%clk 0:00:27.4]} 25... Bxe5 {[%clk 0:01:43.8]} 26. fxe5 {[%clk 0:00:23.1]}
26... Qe6 {[%clk 0:01:33.7]} 27. Rf1 {[%clk 0:00:22]} 27... Rb8 {[%clk
0:01:32.8]} 28. Bc1 {[%clk 0:00:20.1]} 28... b6 {[%clk 0:01:25.9]} 29. cxb6
{[%clk 0:00:20.2]} 29... Rxb6 {[%clk 0:01:25.5]} 30. Qe3 {[%clk 0:00:20.4]}
30... g5 {[%clk 0:01:25.5]} 31. Qd3 {[%clk 0:00:20.2]} 31... Rf8 {[%clk
0:01:17.7]} 32. g4 {[%clk 0:00:20.2]} 32... Kg6 {[%clk 0:01:18.3]} 33. h4 {[%clk
0:00:19.5]} 33... gxh4 {[%clk 0:01:14.4]} 34. Qe3 {[%clk 0:00:18]} 34... f4
{[%clk 0:00:56.8]} 35. Rxf4 {[%clk 0:00:17.7]} 35... Rxf4 {[%clk 0:00:57.7]} 36.
Qxf4 {[%clk 0:00:17.6]} 36... Kg7 {[%clk 0:00:58.3]} 37. Ba3 {[%clk 0:00:11.8]}
37... cxb5 {[%clk 0:00:48]} 38. Bf8+ {[%clk 0:00:04.5]} 38... Kh7 {[%clk
0:00:45.6]} 39. Bd6 {[%clk 0:00:03.3]} 39... bxa4 {[%clk 0:00:39.7]} 40. Kh3
{[%clk 0:00:03.6]} 40... a3 {[%clk 0:00:38]} 41. Bxa3 {[%clk 0:00:02]} 41...
Rb3+ {[%clk 0:00:37.6]} 42. Kxh4 {[%clk 0:00:02.4]} 42... Rxa3 {[%clk
0:00:37.3]} 0-1

[Event "Late-Titled-Tuesday-Blitz-April-16-2024"]
[Site "Chess.com"]
[Date "2024.04.16"]
[Round "5"]
[White "picturesquecheck"]
[Black "dasatcu90"]
[Result "1-0"]
[WhiteElo "2408"]
[BlackElo "2174"]
[TimeControl "180+1"]
[EndTime "14:53:04 PDT"]
[Termination "picturesquecheck won on time"]

1. e4 {[%clk 0:03:00.9]} 1... c6 {[%clk 0:02:59.6]} 2. d4 {[%clk 0:03:00.8]}
2... d5 {[%clk 0:03:00.5]} 3. exd5 {[%clk 0:03:00.8]} 3... cxd5 {[%clk
0:03:00.4]} 4. Bd3 {[%clk 0:03:01.4]} 4... Nc6 {[%clk 0:03:00.2]} 5. c3 {[%clk
0:03:01.7]} 5... g6 {[%clk 0:03:00.7]} 6. Ne2 {[%clk 0:03:01]} 6... Bf5 {[%clk
0:02:57.3]} 7. O-O {[%clk 0:03:01.1]} 7... Bxd3 {[%clk 0:02:56.9]} 8. Qxd3
{[%clk 0:03:02]} 8... Bg7 {[%clk 0:02:57.3]} 9. Bf4 {[%clk 0:03:01]} 9... Nf6
{[%clk 0:02:56.8]} 10. Re1 {[%clk 0:03:00.6]} 10... O-O {[%clk 0:02:56.6]} 11.
Ng3 {[%clk 0:03:00.5]} 11... a6 {[%clk 0:02:53.4]} 12. Nd2 {[%clk 0:03:00.5]}
12... e6 {[%clk 0:02:51.2]} 13. Nb3 {[%clk 0:02:59.9]} 13... Rc8 {[%clk
0:02:49.6]} 14. Nc5 {[%clk 0:02:59.2]} 14... Qe7 {[%clk 0:02:41]} 15. b4 {[%clk
0:02:44.6]} 15... Ne8 {[%clk 0:02:19.9]} 16. a4 {[%clk 0:02:38.8]} 16... Nd8
{[%clk 0:02:13.2]} 17. a5 {[%clk 0:02:29.2]} 17... Nd6 {[%clk 0:02:12.2]} 18.
Re2 {[%clk 0:02:14.9]} 18... Qc7 {[%clk 0:01:59.9]} 19. Rae1 {[%clk 0:02:12.6]}
19... Qc6 {[%clk 0:02:00.1]} 20. Qf3 {[%clk 0:02:06]} 20... Nc4 {[%clk
0:01:47.8]} 21. h4 {[%clk 0:01:57.5]} 21... b6 {[%clk 0:01:39.8]} 22. axb6
{[%clk 0:01:55.6]} 22... Qxb6 {[%clk 0:01:39.3]} 23. Nd7 {[%clk 0:01:50.8]}
23... Qc6 {[%clk 0:01:37.1]} 24. Nxf8 {[%clk 0:01:50]} 24... Bxf8 {[%clk
0:01:37.9]} 25. h5 {[%clk 0:01:48.9]} 25... Nd6 {[%clk 0:01:30.7]} 26. hxg6
{[%clk 0:01:41.1]} 26... hxg6 {[%clk 0:01:30.4]} 27. Re3 {[%clk 0:01:31.8]}
27... Nb5 {[%clk 0:01:26.7]} 28. Be5 {[%clk 0:01:24.2]} 28... Bg7 {[%clk
0:01:16.2]} 29. Qf4 {[%clk 0:01:15.8]} 29... Nb7 {[%clk 0:01:07.9]} 30. Qg5
{[%clk 0:01:10.1]} 30... N7d6 {[%clk 0:00:29.9]} 31. Bxg7 {[%clk 0:01:08.4]}
31... Kxg7 {[%clk 0:00:30.8]} 32. Nh5+ {[%clk 0:01:07.3]} 32... Kf8 {[%clk
0:00:25.1]} 33. Nf6 {[%clk 0:01:04.2]} 33... Nf5 {[%clk 0:00:20]} 34. Rh3 {[%clk
0:01:03.6]} 34... Ke7 {[%clk 0:00:13.8]} 35. Nxd5+ {[%clk 0:01:01.4]} 35... Kd6
{[%clk 0:00:14]} 36. c4 {[%clk 0:00:47.1]} 36... Nbxd4 {[%clk 0:00:09.2]} 37.
Qf4+ {[%clk 0:00:34.9]} 37... Kd7 {[%clk 0:00:09]} 38. Rh7 {[%clk 0:00:34.7]}
38... Rf8 {[%clk 0:00:08.1]} 39. b5 {[%clk 0:00:31.3]} 39... axb5 {[%clk
0:00:07.8]} 40. Nf6+ {[%clk 0:00:31.6]} 40... Kc8 {[%clk 0:00:06.8]} 41. cxb5
{[%clk 0:00:31.9]} 1-0

[Event "Late-Titled-Tuesday-Blitz-April-16-2024"]
[Site "Chess.com"]
[Date "2024.04.16"]
[Round "5"]
[White "simaopdias"]
[Black "CMButgood"]
[Result "1-0"]
[WhiteElo "2248"]
[BlackElo "2029"]
[TimeControl "180+1"]
[EndTime "14:53:04 PDT"]
[Termination "simaopdias won on time"]

1. e4 {[%clk 0:02:59.8]} 1... c5 {[%clk 0:03:00]} 2. Nf3 {[%clk 0:02:57.9]} 2...
d6 {[%clk 0:03:00.6]} 3. Nc3 {[%clk 0:02:52.7]} 3... Nf6 {[%clk 0:03:00.1]} 4.
d4 {[%clk 0:02:52.7]} 4... cxd4 {[%clk 0:03:01]} 5. Nxd4 {[%clk 0:02:53.4]} 5...
g6 {[%clk 0:03:01.6]} 6. Be2 {[%clk 0:02:53]} 6... Bg7 {[%clk 0:03:02.2]} 7. O-O
{[%clk 0:02:53.5]} 7... O-O {[%clk 0:03:02.8]} 8. f4 {[%clk 0:02:52.6]} 8... Nc6
{[%clk 0:03:03.4]} 9. Nb3 {[%clk 0:02:51.7]} 9... a5 {[%clk 0:02:53.5]} 10. a4
{[%clk 0:02:51.1]} 10... Be6 {[%clk 0:02:44.7]} 11. Be3 {[%clk 0:02:51]} 11...
Rc8 {[%clk 0:02:37.7]} 12. Qd2 {[%clk 0:02:50.8]} 12... Nb4 {[%clk 0:02:37.8]}
13. Bf3 {[%clk 0:02:43.5]} 13... d5 {[%clk 0:02:08.6]} 14. e5 {[%clk 0:02:35.3]}
14... Ng4 {[%clk 0:02:05.6]} 15. Bd4 {[%clk 0:02:33.4]} 15... Nc6 {[%clk
0:01:59.4]} 16. Bc5 {[%clk 0:02:30.7]} 16... b6 {[%clk 0:01:59.2]} 17. Ba3
{[%clk 0:02:16]} 17... d4 {[%clk 0:01:59.2]} 18. Ne2 {[%clk 0:01:58.5]} 18...
Ne3 {[%clk 0:01:58.9]} 19. Rf2 {[%clk 0:01:51]} 19... Nb4 {[%clk 0:01:43.5]} 20.
Nbxd4 {[%clk 0:01:42.1]} 20... Nbxc2 {[%clk 0:01:41.1]} 21. Rc1 {[%clk
0:01:00.2]} 21... Nxd4 {[%clk 0:01:23.5]} 22. Qxe3 {[%clk 0:00:58.3]} 22...
Nxe2+ {[%clk 0:00:53.3]} 23. Rxe2 {[%clk 0:00:49.9]} 23... Rxc1+ {[%clk
0:00:52.9]} 24. Qxc1 {[%clk 0:00:50.8]} 24... Qd4+ {[%clk 0:00:51.4]} 25. Qe3
{[%clk 0:00:43.2]} 25... Qxa4 {[%clk 0:00:39.2]} 26. Bxe7 {[%clk 0:00:41.4]}
26... Re8 {[%clk 0:00:34.9]} 27. Bd6 {[%clk 0:00:40.1]} 27... Bc4 {[%clk
0:00:25.5]} 28. Re1 {[%clk 0:00:33.8]} 28... Qb5 {[%clk 0:00:18.2]} 29. Rc1
{[%clk 0:00:31.3]} 29... Bd5 {[%clk 0:00:12.7]} 30. Bxd5 {[%clk 0:00:23.5]}
30... Qxd5 {[%clk 0:00:10.6]} 31. Qxb6 {[%clk 0:00:23.8]} 31... Qd2 {[%clk
0:00:05.7]} 32. Ra1 {[%clk 0:00:18.4]} 1-0

[Event "Late-Titled-Tuesday-Blitz-April-16-2024"]
[Site "Chess.com"]
[Date "2024.04.16"]
[Round "5"]
[White "Revan_2002"]
[Black "BogdanDeac"]
[Result "1-0"]
[WhiteElo "2739"]
[BlackElo "2987"]
[TimeControl "180+1"]
[EndTime "14:53:08 PDT"]
[Termination "Revan_2002 won on time"]

1. d4 {[%clk 0:03:00.9]} 1... Nf6 {[%clk 0:02:59.5]} 2. c4 {[%clk 0:02:55.9]}
2... e6 {[%clk 0:02:59.8]} 3. Nf3 {[%clk 0:02:55.1]} 3... d5 {[%clk 0:03:00.1]}
4. Nc3 {[%clk 0:02:54.3]} 4... c6 {[%clk 0:02:59.6]} 5. e3 {[%clk 0:02:34.8]}
5... Nbd7 {[%clk 0:02:59.1]} 6. Qc2 {[%clk 0:02:34.7]} 6... a5 {[%clk 0:02:59]}
7. e4 {[%clk 0:02:20.7]} 7... dxe4 {[%clk 0:02:36.8]} 8. Nxe4 {[%clk 0:02:21.6]}
8... Nxe4 {[%clk 0:02:37.3]} 9. Qxe4 {[%clk 0:02:21.5]} 9... Bb4+ {[%clk
0:02:37.9]} 10. Bd2 {[%clk 0:02:20.7]} 10... Bxd2+ {[%clk 0:02:37.5]} 11. Nxd2
{[%clk 0:02:21.6]} 11... Nf6 {[%clk 0:02:24.7]} 12. Qh4 {[%clk 0:02:18.1]} 12...
a4 {[%clk 0:02:02.8]} 13. a3 {[%clk 0:02:07.9]} 13... Ra5 {[%clk 0:01:38]} 14.
Be2 {[%clk 0:01:52]} 14... g5 {[%clk 0:01:09.1]} 15. Qh6 {[%clk 0:01:18.4]}
15... Qxd4 {[%clk 0:01:06.8]} 16. O-O-O {[%clk 0:01:18.9]} 16... Rg8 {[%clk
0:00:47.1]} 17. g3 {[%clk 0:00:44.7]} 17... Rg6 {[%clk 0:00:37.9]} 18. Qh3
{[%clk 0:00:43.9]} 18... Qxf2 {[%clk 0:00:38.2]} 19. Bg4 {[%clk 0:00:06.2]}
19... Qc5 {[%clk 0:00:19.3]} 20. Rhf1 {[%clk 0:00:04.1]} 20... Qe7 {[%clk
0:00:18.1]} 21. Kb1 {[%clk 0:00:03.7]} 21... h5 {[%clk 0:00:16.9]} 22. Be2
{[%clk 0:00:04.2]} 22... g4 {[%clk 0:00:16.9]} 23. Qg2 {[%clk 0:00:04.8]} 23...
Re5 {[%clk 0:00:11.7]} 24. Bd3 {[%clk 0:00:05.2]} 24... Rh6 {[%clk 0:00:11.6]}
25. Qf2 {[%clk 0:00:05.2]} 25... Ng8 {[%clk 0:00:06.8]} 26. Qd4 {[%clk
0:00:05.2]} 26... f6 {[%clk 0:00:04.6]} 27. Ne4 {[%clk 0:00:05]} 27... c5 {[%clk
0:00:04.4]} 28. Qc3 {[%clk 0:00:04.1]} 28... Bd7 {[%clk 0:00:03.5]} 29. Bc2
{[%clk 0:00:03.9]} 29... Kd8 {[%clk 0:00:02.4]} 30. Nxf6 {[%clk 0:00:03.3]} 1-0

[Event "Late-Titled-Tuesday-Blitz-April-16-2024"]
[Site "Chess.com"]
[Date "2024.04.16"]
[Round "5"]
[White "trriinu"]
[Black "noblerone"]
[Result "0-1"]
[WhiteElo "2258"]
[BlackElo "2488"]
[TimeControl "180+1"]
[EndTime "14:53:09 PDT"]
[Termination "noblerone won on time"]

1. e4 {[%clk 0:03:00.9]} 1... d5 {[%clk 0:02:54.6]} 2. exd5 {[%clk 0:03:00.7]}
2... Qxd5 {[%clk 0:02:53.2]} 3. Nc3 {[%clk 0:02:57.3]} 3... Qe5+ {[%clk
0:02:52.4]} 4. Qe2 {[%clk 0:02:54.4]} 4... Qxe2+ {[%clk 0:02:52]} 5. Bxe2 {[%clk
0:02:53.5]} 5... Bf5 {[%clk 0:02:49.4]} 6. d3 {[%clk 0:02:52.5]} 6... c6 {[%clk
0:02:49.2]} 7. Nf3 {[%clk 0:02:52.8]} 7... e6 {[%clk 0:02:48.9]} 8. a4 {[%clk
0:02:46.3]} 8... a5 {[%clk 0:02:47.8]} 9. Ne4 {[%clk 0:02:30.7]} 9... Na6 {[%clk
0:02:34.8]} 10. Ng3 {[%clk 0:02:07.4]} 10... Bg6 {[%clk 0:02:34.3]} 11. h4
{[%clk 0:02:05.9]} 11... h6 {[%clk 0:02:32.6]} 12. Ne5 {[%clk 0:01:49.9]} 12...
Bh7 {[%clk 0:02:32]} 13. Bh5 {[%clk 0:01:46.1]} 13... g6 {[%clk 0:02:19.3]} 14.
Bf3 {[%clk 0:01:45]} 14... Nb4 {[%clk 0:02:18.2]} 15. Kd1 {[%clk 0:01:02.6]}
15... Nf6 {[%clk 0:01:44.6]} 16. Bd2 {[%clk 0:00:54.1]} 16... Nfd5 {[%clk
0:01:35.2]} 17. c3 {[%clk 0:00:27.1]} 17... Na6 {[%clk 0:01:31.1]} 18. Nc4
{[%clk 0:00:20.1]} 18... Nac7 {[%clk 0:01:10.4]} 19. Ne4 {[%clk 0:00:10.4]}
19... Ke7 {[%clk 0:00:18.7]} 20. Nc5 {[%clk 0:00:06.3]} 20... b6 {[%clk
0:00:15.9]} 21. Ne4 {[%clk 0:00:05.6]} 21... Rb8 {[%clk 0:00:12.7]} 22. Be3
{[%clk 0:00:05.3]} 22... c5 {[%clk 0:00:10.8]} 23. d4 {[%clk 0:00:05.1]} 23...
Bg7 {[%clk 0:00:09.4]} 24. Kc2 {[%clk 0:00:04.5]} 24... g5 {[%clk 0:00:08]} 25.
Kb3 {[%clk 0:00:04.7]} 25... Bxe4 {[%clk 0:00:06.9]} 26. Bxe4 {[%clk 0:00:04.8]}
26... gxh4 {[%clk 0:00:06.8]} 27. Rxh4 {[%clk 0:00:04.4]} 27... h5 {[%clk
0:00:07.7]} 28. Bf3 {[%clk 0:00:04]} 28... Nf6 {[%clk 0:00:05.9]} 29. Rah1
{[%clk 0:00:02.9]} 29... cxd4 {[%clk 0:00:03.3]} 30. Bxd4 {[%clk 0:00:02.9]}
30... Ncd5 {[%clk 0:00:04.2]} 31. Bxh5 {[%clk 0:00:02.3]} 31... Nxh5 {[%clk
0:00:04.1]} 32. Rxh5 {[%clk 0:00:02.9]} 32... Rxh5 {[%clk 0:00:05]} 0-1

[Event "Late-Titled-Tuesday-Blitz-April-16-2024"]
[Site "Chess.com"]
[Date "2024.04.16"]
[Round "5"]
[White "MikaelyanArman"]
[Black "dennisodessa"]
[Result "1-0"]
[WhiteElo "2760"]
[BlackElo "2545"]
[TimeControl "180+1"]
[EndTime "14:53:10 PDT"]
[Termination "MikaelyanArman won by resignation"]

1. e4 {[%clk 0:03:00.9]} 1... e6 {[%clk 0:02:31.3]} 2. d4 {[%clk 0:02:51.3]}
2... d5 {[%clk 0:02:31.2]} 3. Nc3 {[%clk 0:02:52.2]} 3... Bb4 {[%clk 0:02:31]}
4. exd5 {[%clk 0:02:48.2]} 4... exd5 {[%clk 0:02:31.1]} 5. Bd3 {[%clk
0:02:48.9]} 5... Nf6 {[%clk 0:02:31.5]} 6. Ne2 {[%clk 0:02:49.4]} 6... O-O
{[%clk 0:02:32]} 7. O-O {[%clk 0:02:50]} 7... Bg4 {[%clk 0:02:32.3]} 8. f3
{[%clk 0:02:48.8]} 8... Bh5 {[%clk 0:02:32.8]} 9. Nf4 {[%clk 0:02:45.9]} 9...
Bg6 {[%clk 0:02:32.6]} 10. Nxg6 {[%clk 0:02:45.7]} 10... hxg6 {[%clk 0:02:32.5]}
11. Ne2 {[%clk 0:02:44]} 11... c6 {[%clk 0:02:31.5]} 12. Bf4 {[%clk 0:02:27.8]}
12... Re8 {[%clk 0:02:27.2]} 13. c3 {[%clk 0:02:22.6]} 13... Bd6 {[%clk
0:02:18.4]} 14. Qd2 {[%clk 0:02:23.1]} 14... Nh5 {[%clk 0:02:18.3]} 15. Bxd6
{[%clk 0:02:21.2]} 15... Qxd6 {[%clk 0:02:19.1]} 16. Rae1 {[%clk 0:02:19.3]}
16... Nd7 {[%clk 0:02:19.1]} 17. g4 {[%clk 0:02:14.1]} 17... Nhf6 {[%clk
0:02:19]} 18. Qf4 {[%clk 0:02:12.3]} 18... Qxf4 {[%clk 0:02:14.2]} 19. Nxf4
{[%clk 0:02:13.2]} 19... Kf8 {[%clk 0:02:01.6]} 20. Kf2 {[%clk 0:02:11.9]} 20...
Rxe1 {[%clk 0:02:01.4]} 21. Rxe1 {[%clk 0:02:12.8]} 21... Re8 {[%clk 0:02:01.9]}
22. Rb1 {[%clk 0:02:13]} 22... Nb6 {[%clk 0:01:53.8]} 23. b3 {[%clk 0:02:10.3]}
23... Nc8 {[%clk 0:01:50.3]} 24. c4 {[%clk 0:02:00.2]} 24... dxc4 {[%clk
0:01:44.3]} 25. bxc4 {[%clk 0:02:01.1]} 25... b6 {[%clk 0:01:45]} 26. g5 {[%clk
0:01:54.1]} 26... Ng8 {[%clk 0:01:36.7]} 27. Be4 {[%clk 0:01:22.1]} 27... Nge7
{[%clk 0:01:35]} 28. c5 {[%clk 0:01:21.7]} 28... Rd8 {[%clk 0:01:29.4]} 29. Ke3
{[%clk 0:01:21.1]} 29... Nf5+ {[%clk 0:01:28.3]} 30. Bxf5 {[%clk 0:01:19.7]}
30... gxf5 {[%clk 0:01:29.1]} 31. h4 {[%clk 0:01:15.2]} 31... Re8+ {[%clk
0:00:54.7]} 32. Kd3 {[%clk 0:01:14.4]} 32... Rd8 {[%clk 0:00:54.8]} 33. Kc3
{[%clk 0:01:10.4]} 33... Re8 {[%clk 0:00:52.8]} 34. Kd3 {[%clk 0:01:01.2]} 34...
Rd8 {[%clk 0:00:52.7]} 35. Rc1 {[%clk 0:01:00.8]} 35... Ne7 {[%clk 0:00:51.3]}
36. h5 {[%clk 0:00:58.8]} 36... b5 {[%clk 0:00:44]} 37. Re1 {[%clk 0:00:50.5]}
37... Nd5 {[%clk 0:00:41.4]} 38. Nxd5 {[%clk 0:00:50.3]} 38... Rxd5 {[%clk
0:00:41.6]} 39. f4 {[%clk 0:00:50]} 39... a5 {[%clk 0:00:27.4]} 40. Re2 {[%clk
0:00:43.4]} 40... Rd7 {[%clk 0:00:04.1]} 41. Re5 {[%clk 0:00:40.2]} 41... Re7
{[%clk 0:00:04.7]} 42. Rxe7 {[%clk 0:00:34.5]} 42... Kxe7 {[%clk 0:00:04.8]} 43.
h6 {[%clk 0:00:35.2]} 43... gxh6 {[%clk 0:00:05.3]} 44. gxh6 {[%clk 0:00:36.1]}
44... Kf6 {[%clk 0:00:06.2]} 45. d5 {[%clk 0:00:36.7]} 45... cxd5 {[%clk
0:00:07.1]} 46. c6 {[%clk 0:00:37.2]} 46... Kg6 {[%clk 0:00:07.5]} 47. c7 {[%clk
0:00:37.7]} 47... Kxh6 {[%clk 0:00:08.4]} 48. c8=Q {[%clk 0:00:38.1]} 1-0

[Event "Late-Titled-Tuesday-Blitz-April-16-2024"]
[Site "Chess.com"]
[Date "2024.04.16"]
[Round "5"]
[White "hristos03"]
[Black "N_Mullodzhanov"]
[Result "0-1"]
[WhiteElo "2361"]
[BlackElo "2537"]
[TimeControl "180+1"]
[EndTime "14:53:13 PDT"]
[Termination "N_Mullodzhanov won by resignation"]

1. Nf3 {[%clk 0:03:00.9]} 1... d5 {[%clk 0:02:58.9]} 2. c4 {[%clk 0:03:00.7]}
2... c6 {[%clk 0:02:58.3]} 3. d4 {[%clk 0:02:59]} 3... Nf6 {[%clk 0:02:57.4]} 4.
Nc3 {[%clk 0:02:56.8]} 4... g6 {[%clk 0:02:55.6]} 5. g3 {[%clk 0:02:55.5]} 5...
Bg7 {[%clk 0:02:55.3]} 6. Bg2 {[%clk 0:02:56]} 6... O-O {[%clk 0:02:54.8]} 7.
cxd5 {[%clk 0:02:55.4]} 7... cxd5 {[%clk 0:02:54.2]} 8. O-O {[%clk 0:02:55.4]}
8... Nc6 {[%clk 0:02:53.4]} 9. Bf4 {[%clk 0:02:55.4]} 9... Bf5 {[%clk 0:02:50]}
10. Rc1 {[%clk 0:02:53.8]} 10... a6 {[%clk 0:02:46.3]} 11. Ne5 {[%clk
0:02:47.8]} 11... Rc8 {[%clk 0:02:44.6]} 12. Na4 {[%clk 0:02:32.1]} 12... e6
{[%clk 0:02:34.9]} 13. Nc5 {[%clk 0:02:20.3]} 13... Qe7 {[%clk 0:02:09.9]} 14.
Qa4 {[%clk 0:01:45.2]} 14... Nh5 {[%clk 0:01:56.3]} 15. Nxc6 {[%clk 0:01:23.2]}
15... Rxc6 {[%clk 0:01:48.9]} 16. Be3 {[%clk 0:01:22.9]} 16... Nf6 {[%clk
0:01:37.8]} 17. h3 {[%clk 0:01:18.8]} 17... h5 {[%clk 0:01:35.3]} 18. b4 {[%clk
0:01:17.2]} 18... Rfc8 {[%clk 0:01:31.3]} 19. b5 {[%clk 0:01:10]} 19... axb5
{[%clk 0:01:11]} 20. Qxb5 {[%clk 0:01:10.9]} 20... R6c7 {[%clk 0:00:59.1]} 21.
Nb3 {[%clk 0:01:08.6]} 21... Rxc1 {[%clk 0:00:53.3]} 22. Rxc1 {[%clk 0:01:08.1]}
22... Rxc1+ {[%clk 0:00:53]} 23. Bxc1 {[%clk 0:01:09]} 23... Ne4 {[%clk
0:00:49.7]} 24. h4 {[%clk 0:00:43.6]} 24... Qc7 {[%clk 0:00:41.6]} 25. Bf4
{[%clk 0:00:41.4]} 25... Qc6 {[%clk 0:00:31]} 26. Qa5 {[%clk 0:00:30.4]} 26...
Kh7 {[%clk 0:00:24.7]} 27. Qd8 {[%clk 0:00:27.4]} 27... Qc2 {[%clk 0:00:23.2]}
28. Bf3 {[%clk 0:00:22.4]} 28... Qd1+ {[%clk 0:00:15.8]} 29. Kg2 {[%clk
0:00:21.2]} 29... Nc3 {[%clk 0:00:13]} 30. Qe7 {[%clk 0:00:11.5]} 30... Nxe2
{[%clk 0:00:11.6]} 31. Qe8 {[%clk 0:00:09.3]} 31... Nxf4+ {[%clk 0:00:10.1]} 32.
gxf4 {[%clk 0:00:10.2]} 32... Be4 {[%clk 0:00:09.1]} 33. Bxe4 {[%clk 0:00:10.5]}
33... dxe4 {[%clk 0:00:10]} 34. Qxf7 {[%clk 0:00:10.9]} 34... Qf3+ {[%clk
0:00:10.3]} 35. Kf1 {[%clk 0:00:10.8]} 35... e3 {[%clk 0:00:10.6]} 36. Ke1
{[%clk 0:00:07.9]} 36... Qxf2+ {[%clk 0:00:07.6]} 37. Kd1 {[%clk 0:00:08.2]}
37... e2+ {[%clk 0:00:08.1]} 0-1

[Event "Late-Titled-Tuesday-Blitz-April-16-2024"]
[Site "Chess.com"]
[Date "2024.04.16"]
[Round "5"]
[White "chess_sharparchitect"]
[Black "Veleamater"]
[Result "0-1"]
[WhiteElo "2237"]
[BlackElo "2428"]
[TimeControl "180+1"]
[EndTime "14:53:13 PDT"]
[Termination "Veleamater won by resignation"]

1. c4 {[%clk 0:03:00.9]} 1... d6 {[%clk 0:03:00.9]} 2. Nc3 {[%clk 0:03:00.2]}
2... g6 {[%clk 0:03:00.6]} 3. e4 {[%clk 0:02:58.8]} 3... Bg7 {[%clk 0:03:01.1]}
4. d4 {[%clk 0:02:59.4]} 4... Nf6 {[%clk 0:03:01.5]} 5. h3 {[%clk 0:02:59.2]}
5... O-O {[%clk 0:03:01.6]} 6. Be3 {[%clk 0:02:59.8]} 6... Nc6 {[%clk
0:03:02.1]} 7. Nf3 {[%clk 0:02:56.8]} 7... e5 {[%clk 0:02:59.7]} 8. d5 {[%clk
0:02:57.1]} 8... Ne7 {[%clk 0:02:59.5]} 9. g4 {[%clk 0:02:49.5]} 9... h5 {[%clk
0:02:52.2]} 10. gxh5 {[%clk 0:02:23.4]} 10... Nxh5 {[%clk 0:02:51]} 11. Qd2
{[%clk 0:02:21.9]} 11... a6 {[%clk 0:02:48.5]} 12. Be2 {[%clk 0:02:15.5]} 12...
Bd7 {[%clk 0:02:44.7]} 13. Bh6 {[%clk 0:02:10]} 13... b5 {[%clk 0:02:43.1]} 14.
Bxg7 {[%clk 0:02:04.9]} 14... Kxg7 {[%clk 0:02:42.8]} 15. Rg1 {[%clk 0:01:55.7]}
15... Rh8 {[%clk 0:02:38.7]} 16. Ng5 {[%clk 0:01:47.8]} 16... Nf4 {[%clk
0:02:37.2]} 17. Bg4 {[%clk 0:01:41.4]} 17... b4 {[%clk 0:02:34.9]} 18. Ne2
{[%clk 0:01:36.5]} 18... Nxe2 {[%clk 0:02:32.1]} 19. Qxe2 {[%clk 0:01:34.4]}
19... Rh4 {[%clk 0:02:21.5]} 20. Qf3 {[%clk 0:01:30.1]} 20... Be8 {[%clk
0:01:44.7]} 21. Qg3 {[%clk 0:01:20.5]} 21... Rh6 {[%clk 0:01:44.2]} 22. h4
{[%clk 0:01:16]} 22... Ng8 {[%clk 0:01:44.2]} 23. O-O-O {[%clk 0:01:12.3]} 23...
Qf6 {[%clk 0:01:44.2]} 24. Bf5 {[%clk 0:01:03.3]} 24... Kh8 {[%clk 0:01:31.4]}
25. Bg4 {[%clk 0:01:00.1]} 25... Qf4+ {[%clk 0:01:28]} 26. Qxf4 {[%clk 0:01:00]}
26... exf4 {[%clk 0:01:28.3]} 27. Rh1 {[%clk 0:00:57.1]} 27... Nf6 {[%clk
0:01:26.7]} 28. Bf3 {[%clk 0:00:51.9]} 28... Kg7 {[%clk 0:01:23.5]} 29. Rdg1
{[%clk 0:00:46.5]} 29... Nd7 {[%clk 0:01:23]} 30. h5 {[%clk 0:00:44.8]} 30...
Ne5 {[%clk 0:01:22.2]} 31. hxg6 {[%clk 0:00:42.7]} 31... Nxg6 {[%clk 0:01:18.5]}
32. Rxh6 {[%clk 0:00:30.4]} 32... Kxh6 {[%clk 0:01:18.5]} 33. Nh3 {[%clk
0:00:27]} 33... Bd7 {[%clk 0:01:11.3]} 34. Bg4 {[%clk 0:00:27.3]} 34... Bxg4
{[%clk 0:01:09.5]} 35. Rxg4 {[%clk 0:00:27.5]} 35... Re8 {[%clk 0:01:02.6]} 36.
f3 {[%clk 0:00:25.6]} 36... Ne5 {[%clk 0:00:59.5]} 37. Rxf4 {[%clk 0:00:24.9]}
37... Nd3+ {[%clk 0:00:59.1]} 38. Kd2 {[%clk 0:00:24.8]} 38... Nxf4 {[%clk
0:00:58.5]} 39. Nxf4 {[%clk 0:00:25.2]} 39... a5 {[%clk 0:00:55.9]} 40. Ne2
{[%clk 0:00:21.8]} 40... Rg8 {[%clk 0:00:55]} 41. a3 {[%clk 0:00:19.7]} 41...
Rg2 {[%clk 0:00:54.6]} 42. axb4 {[%clk 0:00:18.8]} 42... axb4 {[%clk 0:00:55]}
43. Kd3 {[%clk 0:00:18.4]} 43... Kg5 {[%clk 0:00:54.8]} 44. b3 {[%clk
0:00:18.3]} 44... Rh2 {[%clk 0:00:54.1]} 45. Ke3 {[%clk 0:00:17.2]} 45... f5
{[%clk 0:00:51.9]} 46. exf5 {[%clk 0:00:16.8]} 46... Kxf5 {[%clk 0:00:52]} 47.
Nd4+ {[%clk 0:00:17]} 47... Kf6 {[%clk 0:00:51.7]} 48. Nc6 {[%clk 0:00:17.3]}
48... Rb2 {[%clk 0:00:51.3]} 49. Kd3 {[%clk 0:00:13.1]} 49... Rxb3+ {[%clk
0:00:51.4]} 50. Kc2 {[%clk 0:00:13.4]} 50... Rc3+ {[%clk 0:00:50.4]} 51. Kb2
{[%clk 0:00:12.6]} 51... Rxc4 {[%clk 0:00:50.8]} 52. Kb3 {[%clk 0:00:12.3]}
52... Rf4 {[%clk 0:00:48.5]} 53. Nxb4 {[%clk 0:00:12.1]} 53... Rxf3+ {[%clk
0:00:48.9]} 54. Kc4 {[%clk 0:00:11.6]} 54... Rf4+ {[%clk 0:00:47]} 55. Kb5
{[%clk 0:00:11.8]} 55... Rxb4+ {[%clk 0:00:46.9]} 56. Kxb4 {[%clk 0:00:12]}
56... Ke5 {[%clk 0:00:47.1]} 57. Kc4 {[%clk 0:00:12.4]} 57... Ke4 {[%clk
0:00:47.3]} 0-1